fUSD/lending_fUSD_20240301
["ID","MTS","AMOUNT","RATE_DAILY","PERIOD"]
[315911162,1709279432233,-375.46,0.00021807,2]
[315911163,1709279432242,-375.46,0.00021808,2]
[315911164,1709279432252,-1226.13609107,0.00021815,2]
[315911165,1709279432261,-1226.13609105,0.00021816,2]
[315911166,1709279432271,-1000.0,0.00021817,2]
[315911167,1709279432282,-555.1681,0.00021817,2]
[315911168,1709279432291,-162.0293,0.00021817,2]
[315911169,1709279432300,-69319.6766539,0.00021817,2]
[315911182,1709279432782,-598.11050968,0.00021817,2]
[315911183,1709279432801,-744.90376815,0.00021817,2]
[315911184,1709279432813,-782.30663819,0.00021817,2]
[315911185,1709279432833,-512.32434185,0.00021817,2]
[315911186,1709279432845,-261.15578167,0.00021817,2]
[315911187,1709279432858,-1211.21560387,0.00021817,2]
[315911188,1709279432885,321.00994822,0.00020897,2]
[315911189,1709279432936,-1302.24553177,0.00021817,2]
[315911190,1709279432947,-74778.15224065,0.00021817,2]
[315911191,1709279432958,-1006.31891198,0.00021817,2]
[315911192,1709279432982,-528.196971,0.00021817,2]
[315911193,1709279432993,-287.03420273,0.00021817,2]
[315911194,1709279433024,-25830.0192465,0.00021817,2]
[315911195,1709279433035,-7492.94838192,0.00021817,2]
[315911196,1709279433061,-969.3014775,0.00021817,2]
[315911197,1709279433072,-275.05843322,0.00021817,2]
[315911198,1709279433129,-59101.03130542,0.00021817,2]
[315911199,1709279433138,-1000.0,0.00021817,2]
[315911200,1709279433147,-162.30994448,0.00021817,2]
[315911201,1709279433157,-863.65880348,0.00021817,2]
[315911202,1709279433166,-966.35826516,0.00021817,2]
[315911203,1709279433176,-1226.13609105,0.00021817,2]
[315911204,1709279433185,-20199.0265,0.00021818,2]
[315911205,1709279433195,-100000.0,0.00021818,2]
[315911206,1709279433204,-237.7985547,0.0002183,2]
[315911207,1709279433213,-8774.1115901,0.0002183,2]
[315911208,1709279433222,-9058.20356252,0.00021851,2]
[315911209,1709279433231,-210.0,0.00021887,2]
[315911210,1709279433240,-1000.0,0.000219,2]
[315911211,1709279433249,-8000.0,0.000219,2]
[315911212,1709279433258,-750.0,0.000219,2]
[315911213,1709279433267,-375.46,0.00021906,2]
[315911214,1709279433277,-375.46,0.00021906,2]
[315911215,1709279433286,-375.46,0.00021906,2]
[315911216,1709279433294,-375.46,0.00021906,2]
[315911217,1709279433303,-375.46,0.00021906,2]
[315911218,1709279433312,-375.46,0.00021907,2]
[315911219,1709279433321,-375.46,0.00021907,2]
[315911220,1709279433330,-178.0,0.00021912,2]
[315911221,1709279433340,-86.83728688,0.00021914,2]
[315911222,1709279433352,-376.45545161,0.00021914,2]
[315911223,1709279433363,-562.4996314,0.00021914,2]
[315911224,1709279433375,-3287.4773629,0.00021914,2]
[315911225,1709279433386,-389.81167713,0.00021914,2]
[315911226,1709279435792,-1797.16,0.00021518,2]
[315911227,1709279435815,-47445.93174908,0.00021914,2]
[315911228,1709279435835,-5876.4747002,0.00021914,2]
[315911229,1709279435860,-345.649116,0.00021915,2]
[315911230,1709279435882,-278.52804656,0.00021915,2]
[315911231,1709279435905,-20314.84447299,0.00021915,2]
[315911232,1709279435928,-465.84732855,0.00021916,7]
[315911233,1709279435952,-155.16917849,0.00021916,2]
[315911234,1709279435975,-241.35558728,0.00021916,2]
[315911235,1709279435998,-533.97630538,0.00021916,2]
[315911236,1709279436021,-155.0,0.00021916,2]
[315911237,1709279436056,-990808.8784613,0.00021916,4]
[315911238,1709279436080,-522.83480893,0.00021917,2]
[315911239,1709279436103,-500.0,0.00021917,2]
[315911240,1709279436126,-500.0,0.00021917,2]
[315911241,1709279436150,-500.0,0.00021917,2]
[315911242,1709279436173,-500.0,0.00021917,2]
[315911243,1709279436195,-500.0,0.00021917,2]
[315911244,1709279436218,-500.0,0.00021917,2]
[315911245,1709279436241,-529.78608106,0.00021917,2]
[315911246,1709279436267,-500.0,0.00021917,2]
[315911247,1709279436296,-500.0,0.00021917,2]
[315911248,1709279436320,-500.0,0.00021917,2]
[315911249,1709279436343,-801.81,0.00021917,2]
[315911250,1709279436365,-500.0,0.00021917,2]
[315911251,1709279436387,-500.0,0.00021917,2]
[315911252,1709279436407,-500.0,0.00021917,2]
[315911253,1709279436428,-500.0,0.00021917,2]
[315911254,1709279436450,-520.12573777,0.00021917,2]
[315911255,1709279436473,-500.0,0.00021917,2]
[315911256,1709279436495,-500.0,0.00021917,2]
[315911257,1709279436516,-500.0,0.00021917,2]
[315911258,1709279436539,-500.0,0.00021917,2]
[315911259,1709279436560,-504.11399739,0.00021917,2]
[315911260,1709279436581,-619.57219319,0.00021917,2]
[315911261,1709279436602,-335.9404732,0.00021917,2]
[315911262,1709279436624,-186.92075647,0.00021917,2]
[315911263,1709279436646,-500.0,0.00021917,2]
[315911264,1709279436667,-500.0,0.00021917,2]
[315911265,1709279436690,-500.0,0.00021917,2]
[315911266,1709279436712,-500.0,0.00021917,2]
[315911267,1709279436733,-500.0,0.00021917,2]
[315911268,1709279436756,-500.0,0.00021917,2]
[315911269,1709279436781,-500.0,0.00021917,2]
[315911270,1709279436803,-500.0,0.00021917,2]
[315911271,1709279436828,-500.0,0.00021917,2]
[315911272,1709279436848,-500.0,0.00021917,2]
[315911273,1709279436871,-500.0,0.00021917,2]
[315911274,1709279436891,-500.0,0.00021917,2]
[315911275,1709279436912,-500.0,0.00021917,2]
[315911276,1709279436934,-500.0,0.00021917,2]
[315911277,1709279436956,-500.0,0.00021917,2]
[315911278,1709279436977,-500.0,0.00021917,2]
[315911279,1709279436997,-500.0,0.00021917,2]
[315911280,1709279437018,-500.0,0.00021917,2]
[315911281,1709279437040,-500.0,0.00021917,2]
[315911282,1709279437060,-500.0,0.00021917,2]
[315911283,1709279437081,-531.39612314,0.00021917,2]
[315911284,1709279437103,-500.0,0.00021917,2]
[315911285,1709279437126,-500.0,0.00021917,2]
[315911286,1709279437146,-509.20247834,0.00021917,2]
[315911287,1709279437166,-500.0,0.00021917,2]
[315911288,1709279437187,-500.0,0.00021917,2]
[315911289,1709279437208,-506.78780694,0.00021917,2]
[315911290,1709279437229,-500.0,0.00021917,2]
[315911291,1709279437248,-310.04178361,0.00021917,2]
[315911292,1709279437269,-500.0,0.00021917,2]
[315911293,1709279437294,-500.0,0.00021917,2]
[315911294,1709279437314,-543.27591358,0.00021917,2]
[315911295,1709279437334,-500.0,0.00021917,2]
[315911296,1709279437356,-500.0,0.00021917,2]
[315911297,1709279437380,-500.0,0.00021917,2]
[315911298,1709279437402,-507.61521207,0.00021917,2]
[315911299,1709279437424,-500.0,0.00021917,2]
[315911300,1709279437444,-500.0,0.00021917,2]
[315911301,1709279437465,-500.0,0.00021917,2]
[315911302,1709279437486,-500.0,0.00021917,2]
[315911303,1709279437507,-500.0,0.00021917,2]
[315911304,1709279437529,-500.0,0.00021917,2]
[315911305,1709279437550,-500.0,0.00021917,2]
[315911306,1709279437571,-500.0,0.00021917,2]
[315911307,1709279437592,-500.0,0.00021917,2]
[315911308,1709279437613,-500.0,0.00021917,2]
[315911309,1709279437635,-500.0,0.00021917,2]
[315911310,1709279437655,-500.0,0.00021917,2]
[315911311,1709279437676,-500.0,0.00021917,2]
[315911312,1709279437697,-500.0,0.00021917,2]
[315911313,1709279437718,-500.0,0.00021917,2]
[315911314,1709279437738,-892.46,0.00021917,2]
[315911315,1709279437759,-500.0,0.00021917,2]
[315911316,1709279437782,-500.0,0.00021917,2]
[315911317,1709279437802,-384.41149088,0.00021917,2]
[315911318,1709279437823,-500.0,0.00021917,2]
[315911319,1709279437843,-500.0,0.00021917,2]
[315911322,1709279437864,-500.0,0.00021917,2]
[315911323,1709279437883,-572.69596129,0.00021917,2]
[315911324,1709279437903,-500.0,0.00021917,2]
[315911325,1709279437923,-500.0,0.00021917,2]
[315911326,1709279437946,-500.0,0.00021917,2]
[315911328,1709279437976,-500.0,0.00021917,2]
[315911330,1709279438006,-500.0,0.00021917,2]
[315911331,1709279438034,-522.37005564,0.00021917,2]
[315911332,1709279438061,-500.0,0.00021917,2]
[315911333,1709279438091,-500.0,0.00021917,2]
[315911334,1709279438118,-500.0,0.00021917,2]
[315911335,1709279438143,-500.0,0.00021917,2]
[315911336,1709279438172,-500.0,0.00021917,2]
[315911337,1709279438199,-502.37197252,0.00021917,2]
[315911338,1709279438227,-500.0,0.00021917,2]
[315911339,1709279438252,-500.0,0.00021917,2]
[315911340,1709279438281,-500.0,0.00021917,2]
[315911341,1709279438308,-500.0,0.00021917,2]
[315911342,1709279438335,-500.0,0.00021917,2]
[315911343,1709279438363,-500.0,0.00021917,2]
[315911344,1709279438392,-500.0,0.00021917,2]
[315911345,1709279438420,-500.0,0.00021917,2]
[315911348,1709279438444,-500.0,0.00021917,2]
[315911351,1709279438471,-500.0,0.00021917,2]
[315911355,1709279438497,-500.0,0.00021917,2]
[315911359,1709279438523,-500.0,0.00021917,2]
[315911363,1709279438547,-500.0,0.00021917,2]
[315911366,1709279438573,-500.0,0.00021917,2]
[315911370,1709279438597,-536.96,0.00021917,2]
[315911372,1709279438627,-500.0,0.00021917,2]
[315911373,1709279438653,-500.0,0.00021917,2]
[315911374,1709279438678,-511.58334896,0.00021917,2]
[315911375,1709279438704,-594.36,0.00021917,2]
[315911376,1709279438729,-517.58958322,0.00021917,2]
[315911377,1709279438755,-500.0,0.00021917,2]
[315911378,1709279438783,-500.0,0.00021917,2]
[315911379,1709279438817,-242.99166189,0.00021917,2]
[315911380,1709279438843,-500.0,0.00021917,2]
[315911381,1709279438869,-500.0,0.00021917,2]
[315911382,1709279438896,-500.0,0.00021917,2]
[315911383,1709279438922,-500.0,0.00021917,2]
[315911384,1709279438947,-500.0,0.00021917,2]
[315911385,1709279438975,-536.96,0.00021917,2]
[315911386,1709279439005,-500.0,0.00021917,2]
[315911387,1709279439033,-500.0,0.00021917,2]
[315911388,1709279439060,-667.54,0.00021917,2]
[315911389,1709279439086,-500.0,0.00021917,2]
[315911390,1709279439111,-500.0,0.00021917,2]
[315911391,1709279439137,-500.0,0.00021917,2]
[315911392,1709279439162,-500.0,0.00021917,2]
[315911393,1709279439186,-500.0,0.00021917,2]
[315911394,1709279439210,-500.0,0.00021917,2]
[315911395,1709279439234,-500.0,0.00021917,2]
[315911396,1709279439258,-500.0,0.00021917,2]
[315911397,1709279439284,-500.0,0.00021917,2]
[315911398,1709279439309,-500.0,0.00021917,2]
[315911399,1709279439333,-500.0,0.00021917,2]
[315911400,1709279439357,-500.0,0.00021917,2]
[315911401,1709279439383,-500.0,0.00021917,2]
[315911402,1709279439407,-500.0,0.00021917,2]
[315911403,1709279439431,-519.76105266,0.00021917,2]
[315911404,1709279439457,-500.0,0.00021917,2]
[315911405,1709279439482,-531.4,0.00021917,2]
[315911406,1709279439508,-500.0,0.00021917,2]
[315911407,1709279439534,-500.0,0.00021917,2]
[315911408,1709279439560,-500.0,0.00021917,2]
[315911409,1709279439585,-500.0,0.00021917,2]
[315911410,1709279439609,-524.30059285,0.00021917,2]
[315911411,1709279439633,-500.0,0.00021917,2]
[315911412,1709279439658,-500.0,0.00021917,2]
[315911413,1709279439683,-1172.95,0.00021917,2]
[315911414,1709279439708,-500.0,0.00021917,2]
[315911415,1709279439733,-500.0,0.00021917,2]
[315911416,1709279439760,-500.0,0.00021917,2]
[315911417,1709279439786,-500.0,0.00021917,2]
[315911418,1709279439810,-500.0,0.00021917,2]
[315911419,1709279439835,-500.0,0.00021917,2]
[315911420,1709279439861,-500.0,0.00021917,2]
[315911421,1709279439886,-500.0,0.00021917,2]
[315911422,1709279439910,-1130.68,0.00021917,2]
[315911423,1709279439935,-962.17,0.00021917,2]
[315911424,1709279439961,-500.0,0.00021917,2]
[315911425,1709279439988,-500.0,0.00021917,2]
[315911426,1709279440015,-500.0,0.00021917,2]
[315911427,1709279440041,-346.59743508,0.00021917,2]
[315911428,1709279440067,-500.0,0.00021917,2]
[315911429,1709279440092,-500.0,0.00021917,2]
[315911430,1709279440117,-500.0,0.00021917,2]
[315911431,1709279440141,-500.0,0.00021917,2]
[315911432,1709279440166,-500.0,0.00021917,2]
[315911433,1709279440190,-500.0,0.00021917,2]
[315911434,1709279440214,-514.73,0.00021917,2]
[315911435,1709279440239,-191.58905653,0.00021917,2]
[315911436,1709279440263,-500.0,0.00021917,2]
[315911437,1709279440289,-500.0,0.00021917,2]
[315911438,1709279440313,-615.8,0.00021917,2]
[315911439,1709279440338,-500.0,0.00021917,2]
[315911440,1709279440363,-500.0,0.00021917,2]
[315911441,1709279440387,-500.0,0.00021917,2]
[315911442,1709279440411,-500.0,0.00021917,2]
[315911443,1709279440436,-500.0,0.00021917,2]
[315911444,1709279440459,-500.0,0.00021917,2]
[315911445,1709279440484,-500.0,0.00021917,2]
[315911446,1709279440509,-500.0,0.00021917,2]
[315911447,1709279440534,-500.0,0.00021917,2]
[315911449,1709279440557,-1483.25,0.00021917,2]
[315911452,1709279440582,-639.71,0.00021917,2]
[315911455,1709279440606,-500.0,0.00021917,2]
[315911456,1709279440630,-2734.07,0.00021917,2]
[315911457,1709279440655,-1671.12,0.00021917,2]
[315911458,1709279440680,-500.0,0.00021917,2]
[315911459,1709279440704,-623.68,0.00021917,2]
[315911460,1709279440729,-500.0,0.00021917,2]
[315911461,1709279440754,-1152.98,0.00021917,2]
[315911462,1709279440783,-500.0,0.00021917,2]
[315911463,1709279440808,-770.41,0.00021917,2]
[315911464,1709279440836,-500.0,0.00021917,2]
[315911465,1709279440863,-501.22430086,0.00021917,2]
[315911466,1709279440889,-500.0,0.00021917,2]
[315911467,1709279440915,-500.0,0.00021917,2]
[315911468,1709279440946,-500.0,0.00021917,2]
[315911469,1709279440974,-946.74,0.00021917,2]
[315911470,1709279440998,-500.0,0.00021917,2]
[315911471,1709279441021,-500.0,0.00021917,2]
[315911472,1709279441047,-500.0,0.00021917,2]
[315911473,1709279441069,-500.0,0.00021917,2]
[315911474,1709279441660,-500.0,0.00021917,2]
[315911475,1709279441684,-500.0,0.00021917,2]
[315911476,1709279441714,-500.0,0.00021917,2]
[315911477,1709279441737,-500.0,0.00021917,2]
[315911478,1709279441761,-500.0,0.00021917,2]
[315911479,1709279441786,-500.0,0.00021917,2]
[315911480,1709279441808,-500.0,0.00021917,2]
[315911481,1709279441830,-639.97,0.00021917,2]
[315911482,1709279441856,-500.0,0.00021917,2]
[315911483,1709279441879,-778.17,0.00021917,2]
[315911484,1709279441902,-500.0,0.00021917,2]
[315911485,1709279441924,-500.0,0.00021917,2]
[315911486,1709279441946,-500.0,0.00021917,2]
[315911487,1709279441968,-500.0,0.00021917,2]
[315911488,1709279441989,-500.0,0.00021917,2]
[315911489,1709279442013,-500.0,0.00021917,2]
[315911490,1709279442038,-500.0,0.00021917,2]
[315911491,1709279442060,-1092.36,0.00021917,2]
[315911492,1709279442082,-508.86440075,0.00021917,2]
[315911493,1709279442104,-500.0,0.00021917,2]
[315911494,1709279442125,-500.0,0.00021917,2]
[315911495,1709279442146,-500.0,0.00021917,2]
[315911496,1709279442168,-606.46,0.00021917,2]
[315911497,1709279442190,-601.99,0.00021917,2]
[315911498,1709279442212,-500.0,0.00021917,2]
[315911499,1709279442233,-500.0,0.00021917,2]
[315911500,1709279442255,-508.71891423,0.00021917,2]
[315911501,1709279442277,-501.01563993,0.00021917,2]
[315911502,1709279442300,-500.0,0.00021917,2]
[315911503,1709279442322,-500.0,0.00021917,2]
[315911504,1709279442343,-500.0,0.00021917,2]
[315911505,1709279442365,-500.0,0.00021917,2]
[315911506,1709279442386,-1000.0,0.00021917,7]
[315911507,1709279442408,-1091.97,0.00021917,2]
[315911508,1709279442429,-500.0,0.00021917,2]
[315911509,1709279442450,-500.0,0.00021917,2]
[315911510,1709279442473,-505.43382367,0.00021917,2]
[315911511,1709279442494,-500.0,0.00021917,2]
[315911512,1709279442517,-500.0,0.00021917,2]
[315911513,1709279442542,-500.0,0.00021917,2]
[315911514,1709279442564,-501.1780949,0.00021917,2]
[315911515,1709279442586,-515.25,0.00021917,2]
[315911516,1709279442609,-763.49,0.00021917,2]
[315911517,1709279442631,-523.39258063,0.00021917,2]
[315911518,1709279442653,-508.32047358,0.00021917,2]
[315911519,1709279442675,-500.0,0.00021917,2]
[315911520,1709279442697,-500.0,0.00021917,2]
[315911521,1709279442719,-500.0,0.00021917,2]
[315911522,1709279442744,-500.0,0.00021917,2]
[315911523,1709279442766,-500.0,0.00021917,2]
[315911524,1709279442790,-500.0,0.00021917,2]
[315911525,1709279442812,-175.5054657,0.00021917,2]
[315911526,1709279442835,-500.0,0.00021917,2]
[315911527,1709279442858,-500.0,0.00021917,2]
[315911528,1709279442881,-500.0,0.00021917,2]
[315911529,1709279442903,-500.0,0.00021917,2]
[315911530,1709279442924,-500.08722093,0.00021917,2]
[315911533,1709279442946,-532.96,0.00021917,2]
[315911535,1709279442968,-500.0,0.00021917,2]
[315911536,1709279442990,-500.0,0.00021917,2]
[315911537,1709279443012,-500.0,0.00021917,2]
[315911538,1709279443035,-500.0,0.00021917,2]
[315911539,1709279443055,-514.28,0.00021917,2]
[315911540,1709279443077,-503.45325038,0.00021917,2]
[315911541,1709279443099,-609.95,0.00021917,2]
[315911542,1709279443121,-617.5,0.00021917,2]
[315911543,1709279443143,-500.0,0.00021917,2]
[315911544,1709279443164,-274.09702276,0.00021917,2]
[315911545,1709279443185,-764.98,0.00021917,2]
[315911546,1709279443207,-1373.21,0.00021917,2]
[315911547,1709279443228,-500.0,0.00021917,2]
[315911548,1709279443250,-616.65,0.00021917,2]
[315911549,1709279443271,-502.84786098,0.00021917,2]
[315911551,1709279443293,-500.0,0.00021917,2]
[315911552,1709279443313,-632.98,0.00021917,2]
[315911553,1709279443335,-500.0,0.00021917,2]
[315911554,1709279443358,-500.0,0.00021917,2]
[315911555,1709279443379,-730.96,0.00021917,2]
[315911556,1709279443400,-508.32,0.00021917,2]
[315911557,1709279443421,-500.0,0.00021917,2]
[315911558,1709279443442,-503.69044582,0.00021917,2]
[315911559,1709279443463,-500.0,0.00021917,2]
[315911560,1709279443485,-500.0,0.00021917,2]
[315911561,1709279443506,-894.52,0.00021917,2]
[315911562,1709279443528,-626.3673433,0.00021917,2]
[315911563,1709279443550,-527.03443365,0.00021917,2]
[315911564,1709279443570,-500.0,0.00021917,2]
[315911565,1709279443591,-500.0,0.00021917,2]
[315911566,1709279443613,-500.0,0.00021917,2]
[315911567,1709279443634,-500.0,0.00021917,2]
[315911568,1709279443655,-547.96,0.00021917,2]
[315911569,1709279443725,-765.41,0.00021917,2]
[315911570,1709279443747,-890.56,0.00021917,2]
[315911571,1709279443771,-500.0,0.00021917,2]
[315911572,1709279443792,-500.0,0.00021917,2]
[315911573,1709279443812,-500.0,0.00021917,2]
[315911574,1709279443832,-500.0,0.00021917,2]
[315911575,1709279443856,-505.56,0.00021917,2]
[315911576,1709279443877,-674.71,0.00021917,2]
[315911577,1709279443899,-500.0,0.00021917,2]
[315911578,1709279443926,-500.0,0.00021917,2]
[315911579,1709279443947,-483.13199116,0.00021917,2]
[315911580,1709279443969,-500.0,0.00021917,2]
[315911581,1709279443991,-500.0,0.00021917,2]
[315911582,1709279444012,-500.0,0.00021917,2]
[315911583,1709279444032,-500.0,0.00021917,2]
[315911584,1709279444053,-500.0,0.00021917,2]
[315911585,1709279444073,-586.21,0.00021917,2]
[315911586,1709279444094,-500.0,0.00021917,2]
[315911587,1709279444114,-500.0,0.00021917,2]
[315911588,1709279444134,-629.82,0.00021917,2]
[315911589,1709279444154,-500.0,0.00021917,2]
[315911590,1709279444175,-500.0,0.00021917,2]
[315911591,1709279444197,-500.0,0.00021917,2]
[315911592,1709279444221,-954.35,0.00021917,2]
[315911593,1709279444242,-727.15,0.00021917,2]
[315911594,1709279444262,-500.0,0.00021917,2]
[315911595,1709279444284,-500.0,0.00021917,2]
[315911596,1709279444305,-500.0,0.00021917,2]
[315911597,1709279444327,-500.0,0.00021917,2]
[315911598,1709279444348,-500.0,0.00021917,2]
[315911599,1709279444369,-663.05,0.00021917,2]
[315911600,1709279444390,-500.0,0.00021917,2]
[315911601,1709279444410,-500.0,0.00021917,2]
[315911602,1709279444430,-517.52750888,0.00021917,2]
[315911603,1709279444450,-500.0,0.00021917,2]
[315911604,1709279444471,-500.0,0.00021917,2]
[315911605,1709279444491,-500.0,0.00021917,2]
[315911606,1709279444512,-500.0,0.00021917,2]
[315911607,1709279444532,-542.47,0.00021917,2]
[315911608,1709279444554,-622.93,0.00021917,2]
[315911609,1709279444574,-772.89,0.00021917,2]
[315911610,1709279444595,-709.98,0.00021917,2]
[315911611,1709279444616,-500.0,0.00021917,2]
[315911612,1709279444637,-500.0,0.00021917,2]
[315911613,1709279444658,-602.42,0.00021917,2]
[315911614,1709279444678,-500.0,0.00021917,2]
[315911615,1709279444699,-500.0,0.00021917,2]
[315911616,1709279444720,-500.0,0.00021917,2]
[315911617,1709279444741,-500.0,0.00021917,2]
[315911618,1709279444761,-874.92,0.00021917,2]
[315911619,1709279444782,-500.0,0.00021917,2]
[315911620,1709279444803,-500.0,0.00021917,2]
[315911621,1709279444823,-500.0,0.00021917,2]
[315911622,1709279444844,-500.0,0.00021917,2]
[315911623,1709279444866,-500.0,0.00021917,2]
[315911624,1709279444886,-500.0,0.00021917,2]
[315911625,1709279444907,-500.0,0.00021917,2]
[315911626,1709279444927,-500.0,0.00021917,2]
[315911627,1709279444949,-500.0,0.00021917,2]
[315911628,1709279444970,-500.0,0.00021917,2]
[315911629,1709279444991,-981.45,0.00021917,2]
[315911630,1709279445011,-500.0,0.00021917,2]
[315911631,1709279445031,-1506.76,0.00021917,2]
[315911632,1709279445053,-500.0,0.00021917,2]
[315911633,1709279445073,-500.0,0.00021917,2]
[315911634,1709279445093,-500.0,0.00021917,2]
[315911635,1709279445113,-619.93,0.00021917,2]
[315911636,1709279445133,-500.0,0.00021917,2]
[315911637,1709279445154,-713.52,0.00021917,2]
[315911638,1709279445175,-663.86,0.00021917,2]
[315911639,1709279445196,-500.0,0.00021917,2]
[315911640,1709279445217,-500.0,0.00021917,2]
[315911641,1709279445237,-500.0,0.00021917,2]
[315911642,1709279445258,-1571.42,0.00021917,2]
[315911643,1709279445279,-500.0,0.00021917,2]
[315911644,1709279445305,-506.59401219,0.00021917,2]
[315911645,1709279445330,-500.0,0.00021917,2]
[315911646,1709279445351,-554.46,0.00021917,2]
[315911647,1709279445373,-500.0,0.00021917,2]
[315911648,1709279445394,-500.0,0.00021917,2]
[315911649,1709279445415,-500.0,0.00021917,2]
[315911650,1709279445435,-500.0,0.00021917,2]
[315911651,1709279445456,-500.0,0.00021917,2]
[315911652,1709279445478,-1324.08,0.00021917,2]
[315911653,1709279445499,-500.0,0.00021917,2]
[315911654,1709279445521,-500.0,0.00021917,2]
[315911655,1709279445544,-3866.26,0.00021917,2]
[315911656,1709279445565,-500.0,0.00021917,2]
[315911657,1709279445588,-2013.49,0.00021917,2]
[315911658,1709279445615,-1972.81,0.00021917,2]
[315911659,1709279445637,-500.0,0.00021917,2]
[315911660,1709279445659,-1183.0,0.00021917,2]
[315911661,1709279445682,-500.0,0.00021917,2]
[315911662,1709279445703,-505.13297987,0.00021917,2]
[315911663,1709279445725,-500.0,0.00021917,2]
[315911664,1709279445747,-840.01,0.00021917,2]
[315911665,1709279445772,-518.99043527,0.00021917,2]
[315911666,1709279445796,-500.0,0.00021917,2]
[315911667,1709279445820,-500.0,0.00021917,2]
[315911668,1709279445844,-516.15387805,0.00021917,2]
[315911669,1709279445865,-500.0,0.00021917,2]
[315911670,1709279445887,-543.98,0.00021917,2]
[315911671,1709279445908,-500.0,0.00021917,2]
[315911672,1709279445929,-1109.91,0.00021917,2]
[315911673,1709279445950,-603.85,0.00021917,2]
[315911674,1709279445971,-1668.13,0.00021917,2]
[315911675,1709279445992,-712.74,0.00021917,2]
[315911676,1709279446012,-1075.08,0.00021917,2]
[315911677,1709279446033,-500.0,0.00021917,2]
[315911678,1709279446059,-599.70177501,0.00021917,2]
[315911679,1709279446081,-554.67,0.00021917,2]
[315911680,1709279446102,-500.0,0.00021917,2]
[315911681,1709279446123,-500.0,0.00021917,2]
[315911682,1709279446143,-500.0,0.00021917,2]
[315911683,1709279446164,-500.0,0.00021917,2]
[315911684,1709279446186,-1131.43,0.00021917,2]
[315911685,1709279446207,-704.78,0.00021917,2]
[315911686,1709279446228,-500.0,0.00021917,2]
[315911687,1709279446251,-962.13,0.00021917,2]
[315911688,1709279446275,-4962.22,0.00021917,2]
[315911689,1709279446299,-8794.57,0.00021917,2]
[315911690,1709279446320,-1356.32,0.00021917,2]
[315911691,1709279446343,-500.0,0.00021917,2]
[315911692,1709279446364,-500.0,0.00021917,2]
[315911693,1709279446385,-500.0,0.00021917,2]
[315911694,1709279446405,-746.58,0.00021917,2]
[315911695,1709279446425,-500.0,0.00021917,2]
[315911696,1709279446446,-500.0,0.00021917,2]
[315911697,1709279446467,-500.0,0.00021917,2]
[315911698,1709279446488,-500.0,0.00021917,2]
[315911699,1709279446509,-863.29,0.00021917,2]
[315911700,1709279446530,-500.0,0.00021917,2]
[315911701,1709279446553,-500.0,0.00021917,2]
[315911702,1709279446578,-500.0,0.00021917,2]
[315911703,1709279446600,-500.0,0.00021917,2]
[315911704,1709279446621,-735.42,0.00021917,2]
[315911705,1709279446643,-4896.24,0.00021917,2]